bitfinex/quotes_SOLUSD_20250823
["timestamp","ask_amount","ask_price","bid_price","bid_amount"]
[1755945444758,0.7,202.98,202.94,10.17260772]
[1755945445135,0.7,202.97,202.94,10.17260772]
[1755945446654,0.7,202.97,202.9,0.03]
[1755945446655,0.7,202.96,202.93,10.17260772]
[1755945446824,0.7,202.95,202.93,10.17260772]
[1755945447263,98.21182593,202.99,202.93,10.17260772]
[1755945447465,0.72,202.97,202.93,10.17260772]
[1755945448346,0.72,202.96,202.91,10.17260772]
[1755945449067,0.72,202.95,202.91,10.17260772]
[1755945449945,77.86661021,202.96,202.91,10.17260772]
[1755945450145,0.72,202.94,202.91,10.17260772]
[1755945451075,0.72,202.93,202.9,10.20260772]
[1755945451943,0.72,202.95,202.9,10.20260772]
[1755945452143,0.72,202.95,202.91,10.17260772]
[1755945452664,92.65987421,202.96,202.92,0.7]
[1755945452863,93.37987421,202.96,202.92,0.7]
[1755945453374,93.37987421,202.96,202.92,10.87260772]
[1755945454177,0.72,202.95,202.9,0.73]
[1755945454384,0.72,202.95,202.91,10.17260772]
[1755945454666,92.65987421,202.96,202.91,10.17260772]
[1755945454970,0.72,202.94,202.9,0.03]
[1755945455158,38.98,202.94,202.9,0.03]
[1755945455478,77.86661021,202.93,202.9,0.03]
[1755945455773,78.58661021,202.93,202.9,0.03]
[1755945455971,88.75921793,202.92,202.9,0.03]
[1755945456356,0.72,202.91,202.9,0.03]
[1755945456682,49.15260772,202.91,202.9,0.03]
[1755945456857,38.98,202.91,202.9,0.03]
[1755945457064,50.40562672,202.91,202.9,0.03]
[1755945457268,40.953019,202.91,202.9,0.03]
[1755945457781,2.693019,202.91,202.9,0.03]
[1755945457966,40.953019,202.91,202.9,0.03]
[1755945459058,40.973019,202.91,202.9,0.03]
[1755945459889,51.14562672,202.91,202.9,0.03]
[1755945461778,12.86562672,202.91,202.9,0.03]
[1755945461958,51.14562672,202.91,202.9,0.03]
[1755945462982,40.973019,202.91,202.9,0.03]
[1755945463286,51.14562672,202.91,202.9,0.03]
[1755945466387,1.973019,202.91,202.9,0.73]
[1755945466586,77.86661021,202.92,202.9,0.73]
[1755945467058,77.86661021,202.92,202.9,0.03]
[1755945467488,77.86661021,202.92,202.9,0.73]
[1755945467890,0.06,202.93,202.91,10.87260772]
[1755945468071,0.06,202.93,202.92,10.87260772]
[1755945468781,0.06,202.93,202.92,10.17260772]
[1755945468981,0.06,202.93,202.91,10.87260772]
[1755945469169,0.06,202.93,202.92,10.87260772]
[1755945476801,0.06,202.93,202.92,12.84455672]
[1755945477415,0.06,202.93,202.92,38.84455672]
[1755945479813,0.06,202.93,202.92,28.671949]
[1755945480105,0.06,202.93,202.92,38.84455672]
[1755945480718,0.06,202.93,202.92,36.87260772]
[1755945485289,0.06,202.93,202.92,26.7]
[1755945485497,0.06,202.93,202.92,36.87260772]
[1755945489323,0.06,202.93,202.92,36.17260772]
[1755945490825,0.06,202.93,202.9,2.001949]
[1755945490997,0.66,202.92,202.9,38.19]
[1755945491200,0.06,202.93,202.91,10.17260772]
[1755945491395,0.72,202.93,202.92,10.17260772]
[1755945491706,0.06,202.93,202.92,10.17260772]
[1755945492340,0.72,202.93,202.92,10.17260772]
[1755945493804,0.06,202.93,202.92,10.88260772]
[1755945494511,0.06,202.93,202.92,10.17260772]
[1755945495216,0.72,202.93,202.92,48.33260772]
[1755945495605,0.06,202.93,202.92,48.33260772]
[1755945497011,0.06,202.93,202.92,10.17260772]
[1755945497225,0.06,202.93,202.92,48.33260772]
[1755945502029,0.06,202.93,202.9,0.03]
[1755945502228,0.06,202.93,202.92,10.17260772]
[1755945503914,0.06,202.93,202.92,10.88260772]
[1755945507642,0.06,202.93,202.92,10.17260772]
[1755945508338,0.06,202.93,202.92,10.89260772]
[1755945509513,0.06,202.93,202.92,10.17260772]
[1755945509838,0.06,202.93,202.92,10.89260772]
[1755945511235,0.06,202.93,202.92,12.86455672]
[1755945511629,0.06,202.93,202.92,10.17260772]
[1755945511945,0.06,202.93,202.92,12.14455672]
[1755945512666,0.06,202.93,202.92,10.17260772]
[1755945515859,0.06,202.93,202.92,12.14455672]
[1755945516355,0.06,202.93,202.92,8.51743717]
[1755945517066,0.06,202.93,202.92,1.971949]
[1755945517222,0.06,202.93,202.92,6.54548817]
[1755945517546,0.06,202.93,202.92,8.51743717]
[1755945523158,0.06,202.93,202.92,8.54743717]
[1755945524458,0.06,202.93,202.92,6.57548817]
[1755945525137,0.06,202.93,202.92,8.54743717]
[1755945540151,0.06,202.93,202.92,22.87735432]
[1755945540486,0.02306886,202.93,202.92,22.87735432]
[1755945541488,0.02306886,202.93,202.92,22.42735432]
[1755945542891,0.02306886,202.93,202.92,22.87735432]
[1755945543090,0.02306886,202.93,202.92,22.42735432]
[1755945545461,0.68306886,202.93,202.92,2.001949]
[1755945545662,0.68306886,202.93,202.92,34.54743717]
[1755945546582,0.02306886,202.93,202.92,34.54743717]
[1755945547364,0.68306886,202.93,202.92,34.54743717]
[1755945548088,0.02306886,202.93,202.92,6.54548817]
[1755945548387,0.02306886,202.93,202.92,8.51743717]
[1755945548892,0.68306886,202.93,202.92,8.51743717]
[1755945553685,0.02306886,202.93,202.92,8.51743717]
[1755945554788,0.68306886,202.93,202.92,8.51743717]
[1755945555594,0.68306886,202.93,202.92,11.61991128]
[1755945555770,0.02306886,202.93,202.92,11.61991128]
[1755945557500,0.02306886,202.93,202.92,11.64991128]
[1755945559476,0.68306886,202.93,202.92,11.64991128]
[1755945559789,0.02306886,202.93,202.92,11.64998022]
[1755945559998,0.02306886,202.93,202.92,11.64983071]
[1755945560583,0.02306886,202.93,202.92,8.54743717]
[1755945565901,0.02306886,202.93,202.92,22.87735432]
[1755945566317,0.06,202.96,202.92,22.87735432]
[1755945566318,0.06,202.96,202.95,39.87991715]
[1755945566481,0.06,202.98,202.96,13.87991715]
[1755945566675,0.06,202.98,202.97,35.76863504]
[1755945566877,0.72,202.98,202.97,89.73982019]
[1755945567387,0.06,202.98,202.97,89.73982019]
[1755945568984,0.06,202.98,202.97,89.73691179]
[1755945569384,0.06,202.98,202.97,90.18691179]
[1755945570096,0.06,203.01,203.0,46.42540532]
[1755945570301,0.06,203.01,203.0,87.76564379]
[1755945570810,0.06,203.01,203.0,89.73652379]
[1755945572495,0.72,203.01,203.0,75.85660664]
[1755945572698,0.72,203.01,203.0,49.85660664]
[1755945573214,0.72,203.01,203.0,43.31111847]
[1755945574410,7.26548817,203.01,203.0,3.22023847]
[1755945575082,7.26548817,203.01,203.0,2.50023847]
[1755945576687,7.26548817,203.01,202.93,38.15]
[1755945577011,6.54548817,202.96,202.93,38.15]
[1755945577300,0.66,202.95,202.93,0.03]
[1755945577509,0.66,202.94,202.93,0.03]
[1755945578884,10.23191482,202.98,202.93,0.03]
[1755945579209,0.66,202.97,202.93,10.26191482]
[1755945579607,10.23191482,202.99,202.93,10.26191482]
[1755945579808,0.66,202.96,202.93,10.26191482]
[1755945580325,0.66,202.98,202.94,10.23191482]
[1755945580816,0.66,202.97,202.94,48.35191482]
[1755945580984,10.23191482,203.0,202.94,38.12]
[1755945581183,0.66,202.97,202.94,48.35191482]
[1755945581380,0.66,202.96,202.94,48.35191482]
[1755945581797,10.23191482,203.0,202.94,48.35191482]
[1755945582117,0.66,202.98,202.94,48.35191482]
[1755945582298,0.66,202.97,202.94,48.35191482]
[1755945582783,0.66,202.97,202.93,14.818888]
[1755945582989,0.66,202.97,202.93,10.92191482]
[1755945583190,0.66,202.97,202.94,10.23191482]
[1755945583606,0.66,202.97,202.93,10.261915]
[1755945583809,0.66,202.97,202.93,21.15382982]
[1755945584494,0.66,202.97,202.93,0.03]
[1755945584691,10.89191482,202.97,202.93,0.03]
[1755945585111,0.66,202.96,202.93,0.03]
[1755945586227,0.66,202.95,202.93,0.03]
[1755945587211,0.66,202.94,202.93,0.03]
[1755945587623,0.66,202.97,202.93,0.03]
[1755945587919,0.66,202.96,202.93,0.03]
[1755945589816,10.23191482,202.99,202.93,10.26191482]
[1755945590013,0.66,202.98,202.93,10.92191482]
[1755945590310,0.66,202.97,202.93,10.92191482]
[1755945590736,0.66,202.96,202.93,10.26191482]
[1755945591298,0.66,202.96,202.93,0.03]
[1755945592703,0.66,202.95,202.93,0.03]
[1755945594403,0.66,202.97,202.93,0.03]
[1755945594916,0.66,202.96,202.93,0.03]
[1755945596219,0.66,202.95,202.93,0.03]
[1755945597396,0.67,202.94,202.93,0.03]
[1755945597809,0.67,202.96,202.93,0.03]
[1755945598208,0.67,202.95,202.93,0.03]
[1755945598625,0.67,202.97,202.93,0.03]
[1755945600732,0.67,202.97,202.94,6.54751664]
[1755945600905,0.67,202.99,202.94,6.54751664]
[1755945601247,0.67,202.98,202.94,7.21751664]
[1755945601399,84.41412685,203.0,202.94,6.54751664]
[1755945601601,0.67,202.97,202.94,6.54751664]
[1755945602000,84.41412685,203.0,202.95,0.67]
[1755945602001,0.67,202.99,202.95,0.67]
[1755945602224,0.67,202.98,202.94,6.54751664]
[1755945602425,0.67,202.98,202.94,7.21751664]
[1755945603107,77.86661021,203.0,202.97,6.54751664]
[1755945603307,0.06,203.01,202.99,6.54751664]
[1755945603509,0.73,203.01,202.99,6.54751664]
[1755945603715,0.06,203.01,203.0,6.54751664]
[1755945604434,0.06,203.01,203.0,10.22225942]
[1755945604608,0.06,203.01,203.0,10.89225942]
[1755945606722,0.06,203.01,203.0,24.77217657]
[1755945608331,0.06,203.01,202.98,40.07156]
[1755945608332,0.06,203.01,202.98,1.97156]
[1755945608537,0.06,203.01,203.0,36.22225942]
[1755945609058,0.06,203.01,203.0,36.89225942]
[1755945609230,0.06,203.01,203.0,37.17658256]
[1755945609549,0.06,203.01,203.0,24.77217657]
[1755945610731,0.06,203.03,203.02,26.0]
[1755945610945,0.06,203.05,203.04,0.28432314]
[1755945611133,0.73,203.15,203.1,0.28432314]
[1755945611327,0.06,203.15,203.13,10.22225942]
[1755945612167,0.06,203.15,203.13,10.50658256]
[1755945612461,0.06,203.15,203.13,12.47629856]
[1755945612659,0.06,203.15,203.13,13.14629856]
[1755945614066,0.87,203.14,203.13,1.969716]
[1755945614242,0.87,203.14,203.1,48.30225942]
[1755945614572,0.67,203.13,203.1,48.30225942]
[1755945615273,0.67,203.13,203.01,13.59559401]
[1755945615473,0.67,203.13,203.08,10.22225942]
[1755945615643,0.67,203.13,203.09,38.08]
[1755945615836,0.67,203.13,203.09,48.30225942]
[1755945616933,0.67,203.13,203.09,38.08]
[1755945617345,0.67,203.13,203.07,27.970395]
[1755945617548,10.89225942,203.13,203.08,38.08]
[1755945617741,0.67,203.12,203.08,38.08]
[1755945617941,10.89225942,203.12,203.08,38.08]
[1755945618140,0.67,203.11,203.08,38.08]
[1755945618531,0.67,203.11,203.06,38.08]
[1755945618532,10.89225942,203.11,203.06,38.08]
[1755945618730,0.67,203.1,203.06,38.08]
[1755945619159,10.22225942,203.11,203.06,38.08]
[1755945619350,0.67,203.09,203.06,38.08]
[1755945619664,0.67,203.08,203.05,10.22225942]
[1755945619838,0.67,203.08,203.06,38.08]
[1755945620236,10.42225942,203.14,203.07,10.22225942]
[1755945620469,0.67,203.13,203.08,10.22225942]
[1755945620660,0.67,203.12,203.08,10.22225942]
[1755945621375,0.67,203.11,203.07,10.22225942]
[1755945621669,0.67,203.1,203.06,48.30225942]
[1755945623272,10.22225942,203.12,203.06,48.30225942]
[1755945623488,0.67,203.09,203.06,48.30225942]
[1755945624077,0.2,203.14,203.06,48.30225942]
[1755945624234,0.67,203.11,203.06,48.30225942]
[1755945624434,10.22225942,203.12,203.06,48.30225942]
[1755945624656,0.67,203.1,203.06,38.08]
[1755945624868,0.67,203.11,203.06,38.75]
[1755945625179,0.67,203.11,203.06,38.11]
[1755945625464,0.67,203.1,203.06,38.11]
[1755945625671,10.89225942,203.1,203.06,38.11]
[1755945625875,0.67,203.09,203.06,38.11]
[1755945626365,10.22225942,203.11,203.06,38.11]
[1755945626571,10.22225942,203.11,203.06,38.78]
[1755945626765,0.67,203.1,203.06,38.11]
[1755945627367,0.72,203.09,203.06,38.11]
[1755945628275,0.72,203.08,203.06,38.11]
[1755945628964,10.94225942,203.1,203.06,38.11]
[1755945629265,0.72,203.09,203.06,38.11]
[1755945630760,0.72,203.09,203.06,0.03]
[1755945631167,0.72,203.08,203.06,0.03]
[1755945631546,10.22225942,203.12,203.06,10.25225942]
[1755945631869,0.06,203.13,203.09,10.22225942]
[1755945632061,0.06,203.13,203.09,48.30225942]
[1755945632375,0.06,203.13,203.09,48.97225942]
[1755945633073,1.3,203.12,203.09,48.30225942]
[1755945633277,1.3,203.12,203.1,0.67]
[1755945633571,0.06,203.13,203.1,0.67]
[1755945634787,0.06,203.13,203.09,48.30225942]
[1755945634951,0.72,203.12,203.09,48.30225942]
[1755945635172,0.72,203.12,203.09,38.08]
[1755945635372,0.06,203.13,203.09,38.08]
[1755945635688,0.78,203.13,203.09,38.08]
[1755945635989,0.06,203.13,203.09,38.08]
[1755945636192,0.78,203.13,203.09,38.08]
[1755945637094,0.78,203.13,203.09,38.75]
[1755945637398,10.28225942,203.13,203.09,38.08]
[1755945637603,10.28225942,203.13,203.06,0.7]
[1755945637604,10.22225942,203.1,203.06,0.03]
[1755945637765,10.22225942,203.08,203.06,0.03]
[1755945637970,10.94225942,203.08,203.06,0.03]
[1755945638487,10.22225942,203.09,203.06,0.03]
[1755945638699,10.94225942,203.1,203.06,0.7]
[1755945638897,10.94225942,203.1,203.06,0.03]
[1755945639284,0.72,203.09,203.06,0.03]
[1755945642693,10.94225942,203.09,203.06,0.03]
[1755945643283,10.28225942,203.1,203.06,0.03]
[1755945643500,11.00225942,203.1,203.06,0.03]
[1755945643701,11.00225942,203.1,203.06,0.7]
[1755945644080,0.78,203.1,203.06,0.7]
[1755945644281,0.06,203.1,203.07,0.67]
[1755945644798,0.06,203.1,203.06,10.25225942]
[1755945644982,0.06,203.1,203.07,0.67]
[1755945645913,0.06,203.1,203.06,0.03]
[1755945646108,0.06,203.1,203.06,0.7]
[1755945646331,0.78,203.1,203.06,0.7]
[1755945646601,0.06,203.1,203.06,0.7]
[1755945646791,0.06,203.1,203.07,0.67]
[1755945647586,0.78,203.1,203.06,0.03]
[1755945647787,0.78,203.1,203.06,0.7]
[1755945648982,0.06,203.1,203.06,0.7]
[1755945649296,0.06,203.1,203.07,0.67]
[1755945649976,0.78,203.1,203.06,10.25225942]
[1755945650196,0.72,203.09,203.06,10.25225942]
[1755945650700,0.06,203.1,203.06,10.92225942]
[1755945650922,0.78,203.1,203.06,10.92225942]
[1755945651133,0.06,203.1,203.07,0.67]
[1755945651339,0.06,203.1,203.06,10.25225942]
[1755945651508,0.78,203.1,203.06,10.25225942]
[1755945651709,0.78,203.1,203.06,10.92225942]
[1755945652132,0.78,203.1,203.06,0.7]
[1755945653932,0.78,203.1,203.06,10.92225942]
[1755945654534,0.72,203.09,203.06,0.03]
[1755945655024,0.72,203.08,203.06,0.03]
[1755945656321,0.06,203.1,203.06,0.03]
[1755945656634,0.78,203.1,203.06,0.7]
[1755945657044,0.78,203.1,203.06,10.92225942]
[1755945657531,0.7,203.09,203.06,0.03]
[1755945658924,10.92225942,203.08,203.06,0.03]
[1755945659130,0.7,203.07,203.06,0.03]
[1755945659528,10.92225942,203.09,203.06,0.03]
[1755945659943,0.7,203.08,203.06,0.03]
[1755945660347,0.7,203.07,203.06,0.03]
[1755945661228,10.92225942,203.09,203.06,0.03]
[1755945661553,10.22225942,203.09,203.06,0.03]
[1755945661734,0.7,203.07,203.06,0.03]
[1755945663030,10.92225942,203.07,203.06,0.03]
[1755945674674,24.51785343,203.07,203.06,0.03]
[1755945680046,24.80217657,203.07,203.06,0.03]
[1755945681485,36.50658256,203.04,203.03,0.03]
[1755945681788,74.58658256,203.04,203.03,0.03]
[1755945681954,75.28658256,203.04,203.03,0.03]
[1755945684486,88.88217657,203.04,203.03,0.03]
[1755945685467,49.81785343,203.04,203.03,0.03]
[1755945685665,87.89785343,203.04,203.03,0.03]
[1755945686275,88.59785343,203.04,203.03,0.03]
[1755945688100,87.89785343,203.04,203.03,0.03]
[1755945688459,88.59785343,203.04,203.03,0.03]
[1755945689662,87.89785343,203.04,203.03,0.03]
[1755945690210,98.15011243,203.04,203.03,0.03]
[1755945690510,98.85011243,203.04,203.03,0.03]
[1755945691477,60.77011243,203.04,203.03,0.03]
[1755945691674,98.85011243,203.04,203.03,0.03]
[1755945695585,60.77011243,203.04,203.03,0.03]
[1755945695786,98.85011243,203.04,203.03,0.03]
[1755945696314,84.55451842,203.04,203.03,0.03]
[1755945697712,48.332259,203.04,203.03,0.7]
[1755945698010,48.30225942,203.04,203.03,0.7]
[1755945698882,50.27391642,203.04,203.03,0.03]
[1755945700328,46.59641528,203.04,203.03,0.03]
[1755945700500,46.59641528,203.04,203.03,0.7]
[1755945700901,8.51641528,203.04,203.03,0.7]
[1755945702514,38.08,203.05,203.03,0.7]
[1755945702515,44.62475828,203.05,203.03,0.7]
[1755945702712,0.06,203.07,203.03,0.7]
[1755945703201,0.06,203.07,203.03,7.24475828]
[1755945703521,0.06,203.07,203.04,0.67]
[1755945705621,0.06,203.07,203.05,6.54475828]
[1755945705814,0.06,203.07,203.06,0.67]
[1755945706200,0.06,203.07,203.06,7.21475828]
[1755945706401,0.06,203.07,203.06,10.88676761]
[1755945706604,0.06,203.07,203.06,0.67]
[1755945707124,0.06,203.07,203.03,0.03]
[1755945707125,10.97676761,203.07,203.03,0.7]
[1755945707299,10.21676761,203.05,203.03,0.03]
[1755945707707,0.06,203.07,203.04,0.67]
[1755945707912,0.06,203.07,203.03,0.03]
[1755945708113,0.06,203.07,203.05,0.67]
[1755945708820,0.06,203.07,203.06,0.67]
[1755945715635,0.06,203.07,203.06,10.88676761]
[1755945716136,0.06,203.07,203.06,0.67]
[1755945716317,0.06,203.07,203.06,10.88676761]
[1755945716631,0.06,203.07,203.06,0.67]
[1755945717906,0.06,203.07,203.04,10.92676761]
[1755945718138,0.06,203.07,203.05,0.71]
[1755945718335,0.06,203.07,203.05,10.92676761]
[1755945718535,0.06,203.07,203.04,10.21676761]
[1755945718837,0.69,203.06,203.03,0.03]
[1755945719023,10.27676761,203.07,203.03,0.03]
[1755945719229,10.27676761,203.07,203.03,0.74]
[1755945719534,10.96676761,203.07,203.03,0.74]
[1755945719834,10.96676761,203.07,203.03,0.03]
[1755945720048,10.96676761,203.07,203.03,0.74]
[1755945720336,0.75,203.07,203.03,0.74]
[1755945721133,0.06,203.07,203.04,0.71]
[1755945721346,0.06,203.07,203.05,0.71]
[1755945721634,0.06,203.07,203.03,10.24676761]
[1755945721940,0.06,203.07,203.06,0.71]
[1755945722453,0.06,203.07,203.06,10.92676761]
[1755945723621,10.96676761,203.07,203.03,0.03]
[1755945723817,10.21676761,203.04,203.03,0.03]
[1755945724423,10.90676761,203.04,203.03,0.03]
[1755945725130,50.78668476,203.04,203.03,0.03]
[1755945727030,52.75873076,203.04,203.03,0.03]
[1755945727525,52.47440762,203.04,203.03,0.03]
[1755945731132,42.25764001,203.04,203.03,0.03]
[1755945731341,52.47440762,203.04,203.03,0.03]
[1755945731653,90.53440762,203.04,203.03,0.03]
[1755945734451,80.31764001,203.04,203.03,0.03]
[1755945734750,90.53440762,203.04,203.03,0.03]
[1755945737369,80.31764001,203.04,203.03,0.03]
[1755945737660,90.53440762,203.04,203.03,0.03]
[1755945738860,66.032046,203.04,203.03,0.03]
[1755945739047,38.18881361,203.04,203.03,0.03]
[1755945739252,76.24881361,203.04,203.03,0.03]
[1755945739649,50.24881361,203.04,203.03,0.03]
[1755945740251,1.972046,203.04,203.03,0.03]
[1755945740659,12.18881361,203.04,203.03,0.03]
[1755945742574,12.87881361,203.04,203.03,0.03]
[1755945747355,26.47440762,203.04,203.03,0.03]
[1755945748961,25.78440762,203.04,203.03,0.03]
[1755945749173,12.18881361,203.04,203.03,0.03]
[1755945749574,12.87881361,203.04,203.03,0.03]
[1755945752098,12.18881361,203.04,203.03,0.03]
[1755945752477,1.972046,203.04,203.03,0.03]
[1755945752791,10.21676761,203.04,203.03,0.03]
[1755945754092,89.21676761,203.04,203.03,0.03]
[1755945754290,89.90676761,203.04,203.03,0.03]
[1755945754678,91.87842461,203.04,203.03,0.03]
[1755945755869,105.47401862,203.04,203.03,0.03]
[1755945756283,95.25725101,203.04,203.03,0.03]
[1755945756475,105.47401862,203.04,203.03,0.03]
[1755945760003,26.47401862,203.04,203.03,0.03]
[1755945761276,16.54157415,203.04,203.03,0.03]
[1755945761596,39.59559401,203.02,203.01,0.03]
[1755945761770,87.85236162,203.02,203.01,0.03]
[1755945761970,88.54236162,203.02,203.01,0.03]
[1755945762170,64.51469962,203.02,203.01,0.03]
[1755945773008,0.28432314,203.01,203.0,0.03]
[1755945773197,37.19109075,203.01,203.0,0.03]
[1755945773503,11.19109075,203.01,203.0,0.03]
[1755945773711,13.16342875,203.01,203.0,0.03]
[1755945779007,2.25666114,203.01,203.0,0.03]
[1755945779204,26.06902276,203.01,203.0,0.75]
[1755945779391,26.06902276,203.01,203.0,0.03]
[1755945780484,1.972338,203.01,203.0,0.75]
[1755945780684,0.06,203.03,203.0,0.75]
[1755945781215,0.06,203.03,203.01,3.0770628]
[1755945781405,10.21676761,203.02,203.0,0.75]
[1755945781710,10.21676761,203.02,203.0,0.03]
[1755945781711,10.21676761,203.01,203.0,0.03]
[1755945781912,24.77668476,203.01,203.0,0.03]
[1755945782481,24.09668476,203.01,203.0,0.03]
[1755945783289,50.89668476,203.01,203.0,0.03]
[1755945784717,51.57668476,203.01,203.0,0.03]
[1755945784903,53.54892576,203.01,203.0,0.03]
[1755945786111,52.86892576,203.01,203.0,0.03]
[1755945787101,42.36783501,203.01,203.0,0.75]
[1755945787303,53.26460262,203.01,203.0,0.03]
[1755945789595,53.54892576,203.01,203.0,0.03]
[1755945790103,43.33215815,203.01,203.0,0.03]
[1755945790315,53.54892576,203.01,203.0,0.03]
[1755945792020,90.90892576,203.01,203.0,0.03]
[1755945793127,80.69215815,203.01,203.0,0.03]
[1755945793421,90.90892576,203.01,203.0,0.03]
[1755945793924,90.96892576,203.01,203.0,0.03]
[1755945794700,52.92892576,203.01,203.0,0.03]
[1755945794922,89.88460262,203.01,203.0,0.75]
[1755945795410,89.88460262,203.01,203.0,0.03]
[1755945797325,90.56460262,203.01,203.0,0.03]
[1755945797702,89.88460262,203.01,203.0,0.03]
[1755945799229,90.84892576,203.01,203.0,0.03]
[1755945800658,90.16892576,203.01,203.0,0.03]
[1755945801355,89.88460262,203.01,203.0,0.75]
[1755945801731,89.88460262,203.01,203.0,0.03]
[1755945804354,41.62783501,203.01,203.0,0.03]
[1755945804558,89.88460262,203.01,203.0,0.75]
[1755945804974,89.88460262,203.01,203.0,0.03]
[1755945807954,90.81892576,203.01,203.0,0.03]
[1755945809260,64.81892576,203.01,203.0,0.03]
[1755945811281,54.60215815,203.01,203.0,0.03]
[1755945811601,64.81892576,203.01,203.0,0.03]
[1755945816703,54.60215815,203.01,203.0,0.03]
[1755945816907,64.81892576,203.01,203.0,0.03]
[1755945818598,41.91215815,203.01,203.0,0.03]
[1755945818782,90.16892576,203.01,203.0,0.69]
[1755945819699,90.16892576,203.01,203.0,0.03]
[1755945819900,64.81892576,203.01,203.0,0.03]
[1755945827324,26.77892576,203.01,203.0,0.03]
[1755945827495,64.81892576,203.01,203.0,0.03]
[1755945830708,26.77892576,203.01,203.0,0.03]
[1755945831011,64.81892576,203.01,203.0,0.03]
[1755945831920,13.87991715,202.99,202.98,0.03]
[1755945832238,196.53668476,202.99,202.98,0.03]
[1755945832533,197.18668476,202.99,202.98,0.03]
[1755945832693,199.15950876,202.99,202.98,0.03]
[1755945836298,188.94274115,202.99,202.98,0.03]
[1755945836499,199.15950876,202.99,202.98,0.03]
[1755945837001,118.53559401,202.96,202.95,0.03]
[1755945837217,156.57559401,202.96,202.95,0.69]
[1755945837620,158.54851601,202.96,202.95,0.03]
[1755945837826,168.76528362,202.96,202.95,0.03]
[1755945838329,168.76528362,202.96,202.95,0.71]
[1755945839733,168.76528362,202.96,202.95,0.03]
[1755945840304,120.50851601,202.96,202.95,0.03]
[1755945840528,144.952922,202.96,202.95,0.71]
[1755945840836,118.952922,202.96,202.95,0.71]
[1755945843628,129.16968961,202.96,202.95,0.71]
[1755945844932,129.14968961,202.96,202.95,0.71]
[1755945847029,118.932922,202.96,202.95,0.71]
[1755945847912,80.912922,202.96,202.95,0.71]
[1755945848102,118.932922,202.96,202.95,0.71]
[1755945848730,39.992922,202.96,202.95,0.71]
[1755945852408,134.4,202.98,202.95,0.71]
[1755945852606,1.972338,202.97,202.95,0.71]
[1755945853841,1.972338,202.97,202.96,0.68]
[1755945854723,80.972338,202.97,202.96,0.68]
[1755945855618,79.0,202.97,202.96,0.68]
[1755945859149,89.260413,202.97,202.96,0.68]
[1755945860746,89.260413,202.97,202.96,0.71]
[1755945861261,89.320413,202.97,202.96,0.71]
[1755945861468,89.320413,202.97,202.96,0.03]
[1755945861671,89.320413,202.97,202.96,0.71]
[1755945862554,79.06,202.97,202.96,10.94041236]
[1755945865569,79.06,202.97,202.96,0.71]
[1755945866469,0.06,202.97,202.96,0.71]
[1755945875683,0.06,202.97,202.96,0.03]
[1755945886503,20.86218931,202.97,202.96,0.03]
[1755945886708,22.83472131,202.97,202.96,0.03]
[1755945887888,101.83472131,202.97,202.96,0.03]
[1755945888786,88.2391273,202.97,202.96,0.03]
[1755945888986,119.032532,202.97,202.96,0.03]